Cogmind - Beta 11.1 @@@ ROGUE MODE // 2022.05.15 @ 15:52:50 Player: RX86 Result: Destroyed by D-53 Grenadier with Mini Grenade Launcher Performance ------------- Evolutions (0) 0 Regions Visited (2) 400 Robots Destroyed (7) 35 Value Destroyed (134) 134 Prototype IDs (2) 40 Alien Tech Used (0) 0 Bonus (0) 0 TOTAL SCORE: 609 Bonus ------- None Cogmind --------- Core Integrity 0/250 Matter 257/300 Energy 70/100 System Corruption 0% Temperature Cool (0) Movement Walking (120) Location -10/Mines Parts ------- > --- POWER (1) -------- (None) > --- PROPULSION (2) --- Aluminum Leg > --- UTILITY (2) ------ Weight Redist. System Sensor Array > --- WEAPON (2) ------- Grenade Launcher > --- INVENTORY (5) ---- Aluminum Leg Hover Unit EM Shotgun Grenade Launcher Makeshift Axe Peak State ------------ > --- POWER ------------ Ion Engine > --- PROPULSION ------- Hover Unit Flight Unit > --- UTILITY ---------- Weight Redist. System Sensor Array > --- WEAPON ----------- Grenade Launcher Makeshift Axe > --- INVENTORY -------- Aluminum Leg Aluminum Leg EM Shotgun Grenade Launcher [Rating: 11] Favorites ----------- Power Ion Engine Engine Ion Engine Propulsion Flight Unit Leg Aluminum Leg Hover Unit Hover Unit Flight Unit Flight Unit Utility Sensor Array Device Sensor Array Weapon EM Shotgun Energy Gun EM Shotgun Launcher Grenade Launcher Impact Weapon Hammer Slashing Weapon Makeshift Axe Build | -11 -10 -10 ------- Run | Scr Mat Min Slots Evolved . | . . . Power . | . . . Propulsion . | . . . Utility . | . . . Weapon . | . . . Parts Attached 25 | 4 14 7 Power 4 | 1 3 . Engine 4 | 1 3 . Core . | . . . Reactor . | . . . Propulsion 9 | 2 5 2 Treads . | . . . Leg 3 | 2 . 1 Wheel . | . . . Hover 1 | . . 1 Flight 5 | . 5 . Utility 3 | . 3 . Device 3 | . 3 . Storage . | . . . Processor . | . . . Hackware . | . . . Protection . | . . . Artifact . | . . . Weapon 9 | 1 3 5 Energy Gun 3 | 1 2 . Energy Cannon . | . . . Ballistic Gun . | . . . Ballistic Cannon . | . . . Launcher 4 | . 1 3 Special Weapon . | . . . Impact Weapon 1 | . . 1 Slashing Weapon 1 | . . 1 Piercing Weapon . | . . . Special Melee Weapon . | . . . Unidentified Prototypes . | . . . Parts Lost 9 | . 7 2 Power 2 | . 1 1 Propulsion 5 | . 4 1 Utility 1 | . 1 . Weapon 1 | . 1 . Highest Loss Streak 3 | . 3 2 To Critical Strikes . | . . . Average Slot Usage (%) 70 | . 62 85 Engine 12 | . 11 14 Leg 4 | . 7 . Hover 4 | . . 11 Flight 15 | . 16 14 Device 17 | . 12 28 Energy Gun 9 | . 13 2 Launcher 3 | . . 9 Impact Weapon 1 | . . 4 Naked Turns . | . . . Heaviest Build 12 | 6 9 12 Greatest Support 20 | 20 20 12 Greatest Overweight (x) 1 | 1 . . Average Overweight (x) . | . . . Largest Inventory Capacity 5 | 5 5 5 Average Capacity 5 | 5 5 5 Most Carried 5 | 5 5 5 Average Carried 4 | 3 4 4 Final Capacity 5 | 5 5 5 Final Carried 5 | 4 5 5 Class Distribution -------------------- 100% | Mutant Dominant Class ---------------- Mutant | -10/Materials Mutant | -10/Mines Resources | -11 -10 -10 ----------- Run | Scr Mat Min Matter Collected 422 | 216 72 134 Remotely . | . . . Salvage Created 206 | . 148 58 Parts 12 | . 11 1 Haulers Intercepted 2 | . 2 . Recyclers Shooed . | . . . Parts Field Recycled . | . . . Retrieved Matter . | . . . Parts Self-Destructed . | . . . Prevented . | . . . Kills | -11 -10 -10 ------- Run | Scr Mat Min Combat Hostiles Destroyed 5 | . 3 2 Guns 1 | . 1 . AOE 4 | . 2 2 Classes Destroyed 3 | . 2 1 Hauler 2 | . 2 . Swarmer 3 | . 3 . Sentry 2 | . . 2 Best Kill Streak 3 | . 3 2 Combat Bots Only 3 | . 3 2 Max Kills in Single Turn 2 | . 2 2 Gunslinging . | . . . Exploded 2 | . 2 2 Melee . | . . . Uniques/NPCs Destroyed . | . . . Combat | -11 -10 -10 -------- Run | Scr Mat Min Damage Taken 721 | . 544 177 Core 256 | . 216 40 Absorbed by Shields . | . . . Core Remaining (%) 100 | 100 . . Volleys Fired 22 | . 18 4 Largest 2 | . 1 2 Hottest 60 | . 45 60 Shots Fired 24 | . 18 6 Gun 18 | . 18 . Cannon . | . . . Launcher 6 | . . 6 Special . | . . . Kinetic . | . . . Thermal . | . . . Explosive 6 | . . 6 Electromagnetic 18 | . 18 . Robot Hit Streak 8 | . 8 8 Robot Miss Streak 3 | . 3 1 Penetration Max . | . . . Secondary Targets . | . . . Shots Hit Robots 17 | . 12 5 Core Hits 17 | . 7 10 Critical Kills . | . . . Critical Parts Destroyed . | . . . Critical Strikes . | . . . Melee Attacks . | . . . Impact . | . . . Slashing . | . . . Piercing . | . . . Sneak Attacks . | . . . Combat Hostiles . | . . . Follow-up Attacks . | . . . Damage Inflicted 395 | . 249 146 Guns 166 | . 166 . Cannons . | . . . Explosions 229 | . 83 146 Melee . | . . . Ramming . | . . . Kinetic . | . . . Thermal 83 | . 83 . Explosive 146 | . . 146 Electromagnetic 166 | . 166 . Impact . | . . . Slashing . | . . . Piercing . | . . . Highest Corruption . | . . . Average Corruption . | . . . Corruption Purged . | . . . Corruption Blocked . | . . . Overload Shots . | . . . Overflow Damage . | . . . Projectiles . | . . . Explosions . | . . . Melee . | . . . Knockbacks . | . . . Impact . | . . . Kinetic . | . . . Secondary . | . . . Self-Inflicted Damage 35 | . 34 1 Shots 2 | . 1 1 Rammed . | . . . Targets Rammed . | . . . Kicked . | . . . Crushed . | . . . Highest Temperature 25 | . 22 25 Average Temperature 11 | . 10 16 Received Heat Transfer 276 | . 258 18 Siege Activations . | . . . Robots Corrupted . | . . . Combat Hostiles . | . . . Parts Fried 1 | . 1 . Impact Corruptions . | . . . Robots Melted . | . . . Combat Hostiles . | . . . Parts Melted 1 | . 1 . Heat Transferred 150 | . 150 . Parts Sabotaged . | . . . Parts Stolen . | . . . Parts Stripped . | . . . Power Chain Reactions 1 | . 1 . Missiles Intercepted . | . . . Alert | -11 -10 -10 ------- Run | Scr Mat Min Peak Influence 344 | . 344 262 Initial 133 | . . 133 Average 171 | . 170 228 Maximum Alert Level 1 | . 1 1 Low Security (%) 51 | 100 63 18 Level 1 48 | . 36 81 Level 2 . | . . . Level 3 . | . . . Level 4 . | . . . Level 5 . | . . . High Security . | . . . Max Security . | . . . Squads Dispatched 3 | . 3 . Investigation 2 | . 2 . Extermination . | . . . Reinforcement 1 | . 1 . Assault . | . . . Garrison . | . . . Intercept . | . . . Searches Triggered . | . . . Construction Impeded . | . . . Haulers Reinforced . | . . . Active Scanning Responses . | . . . Cargo Convoy Interrupts . | . . . Stealth | -11 -10 -10 --------- Run | Scr Mat Min Distress Signals 1 | . 1 . Communications Jammed . | . . . Distress Signals . | . . . Times Spotted 36 | . 32 4 Peak Tracking Total 9 | . 9 2 Tactical Retreats 5 | . 5 . Traps | -11 -10 -10 ------- Run | Scr Mat Min Traps Triggered . | . . . Indirectly . | . . . Trap Hack Attempts . | . . . Triggered . | . . . Disarmed . | . . . Reprogrammed . | . . . Reused . | . . . Traps Extracted . | . . . Installed . | . . . Triggered . | . . . Machines | -11 -10 -10 ---------- Run | Scr Mat Min Machines Disabled 3 | . 1 2 Max in Single Turn 2 | . 1 2 Machines Sabotaged . | . . . Garrisons Compromised . | . . . Overloaded Fab Kills . | . . . Hacking | -11 -10 -10 --------- Run | Scr Mat Min Machines Accessed 7 | . 6 1 Terminals 7 | . 6 1 Fabricators . | . . . Repair Stations . | . . . Recycling Units . | . . . Scanalyzers . | . . . Garrison Access . | . . . Total Hacks 21 | . 18 3 Successful 11 | . 8 3 Failed 10 | . 10 . Catastrophic 3 | . 3 . Database Lockouts . | . . . Manual 18 | . 16 2 Terminals 21 | . 18 3 Fabricators . | . . . Repair Stations . | . . . Recycling Units . | . . . Scanalyzers . | . . . Garrison Access . | . . . Terminal Hacks 7 | . 5 2 Prototype ID Bank 1 | . 1 . Level Access Points 1 | . 1 . Terminal Index 1 | . 1 . Alert Level 2 | . 1 1 Hauler Manifests 1 | . 1 . Zone Layout 1 | . . 1 Fabricator Hacks . | . . . Repair Station Hacks . | . . . Recycling Unit Hacks . | . . . Scanalyzer . | . . . Garrison Access Hacks . | . . . Unauthorized Hacks 4 | . 3 1 Terminals 4 | . 3 1 Botnet 3 | . 2 1 Operators 1 | . 1 . Fabricators . | . . . Repair Stations . | . . . Recycling Units . | . . . Scanalyzers . | . . . Garrison Access . | . . . Data Cores Recovered . | . . . Used . | . . . Hacking Detections 7 | . 6 1 Full Trace Events 3 | . 3 . Feedback Events . | . . . Feedback Blocked . | . . . Robot Schematics Acquired . | . . . Robots Built . | . . . Authchips . | . . . Time . | . . . Total Robot Build Rating . | . . . Part Schematics Acquired . | . . . Parts Built . | . . . Authchips . | . . . Time . | . . . Total Part Build Rating . | . . . Parts Repaired . | . . . Time . | . . . Parts Recycled . | . . . Recycled Matter . | . . . Retrieved Matter . | . . . Retrieved Components . | . . . Parts Scanalyzed . | . . . Part Schematics Acquired . | . . . Parts Damaged . | . . . Bothacking | -11 -10 -10 ------------ Run | Scr Mat Min Used RIF Installer . | . . . Robots Hacked . | . . . Non-combat . | . . . Combat . | . . . Robot Hacks Applied . | . . . Relay Couplers Released . | . . . Fabnet Peak Effective % . | . . . Robots Rewired . | . . . Allies Hacked . | . . . Hacks Repelled . | . . . Allies | -11 -10 -10 -------- Run | Scr Mat Min Total Allies . | . . . Largest Group . | . . . Highest-Rated Group . | . . . Highest-Rated Ally . | . . . Total Orders . | . . . Ally Attacks . | . . . Total Damage . | . . . Kills . | . . . Allies Corrupted . | . . . Allies Melted . | . . . Intel | -11 -10 -10 ------- Run | Scr Mat Min Robot Analysis Total . | . . . Derelict Logs Recovered . | . . . Drone Launches . | . . . Drone Recoveries . | . . . Exploration | -11 -10 -10 ------------- Run | Scr Mat Min Turns Passed 518 | 56 287 175 Spaces Moved 908 | 38 491 379 Core 11 | 11 . . Treads . | . . . Legs 67 | 27 40 . Wheels . | . . . Hover 12 | . . 12 Flight 818 | . 451 367 Fastest Speed 37 | 50 37 40 Average Speed 45 | 112 44 40 Slowest Speed 120 | 120 120 60 Overloaded Moves . | . . . Propulsion Burnouts . | . . . Robots Hopped 16 | . 11 5 Cave-ins Triggered . | . . . Exploration Rate (%) 51 | 4 76 73 Regions Visited 2 Branch Regions 1 Pre-discovered Areas . | . . . Known Exits Taken . | . . . Unknown Exits Taken 2 | 1 1 . Scrap Searched 1 | . . 1 Spaces Dug . | . . . Terrain Destroyed 30 | . 2 28 Melee . | . . . Projectile . | . . . AOE 30 | . 2 28 Terrain Rammed . | . . . Walls Destroyed . | . . . Machines Disabled . | . . . Actions | -11 -10 -10 --------- Run | Scr Mat Min Total 966 | 49 528 389 Wait 3 | 3 . . Move 875 | 37 469 369 Hop 15 | . 10 5 Pick Up 15 | 5 9 1 Fast Attach 11 | 3 7 1 Attach 6 | 1 3 2 Detach 3 | . 1 2 Swap 8 | . 4 4 Drop 8 | . 7 1 Fire 22 | . 18 4 Melee . | . . . Ram . | . . . Kick . | . . . Crush . | . . . Escape Stasis . | . . . Rewire . | . . . Trap . | . . . Miscellaneous . | . . . Route ------- -11/Scrapyard -10/Materials (discovered 5 exits: *Mat x3 / *Min x2) -10/Mines (discovered 2 exits: *Mat / [*Exi]) History --------- Turn | Location | Event 18 | -11/Scrapyard | Discovered new exit (range 16) 57 | -11/Scrapyard | Entered Materials 142 | -10/Materials | Discovered new exit (range 7) 164 | -10/Materials | Discovered new exit (range 9) 175 | -10/Materials | Discovered new exit (range 13) 214 | -10/Materials | Discovered new exit (range 9) 227 | -10/Materials | Lost 3 parts (1n1u1w) 241 | -10/Materials | Core integrity fell below 50% 315 | -10/Materials | Identified exit to Materials 316 | -10/Materials | Build established: Mutant 322 | -10/Materials | Core integrity fell below 20% 344 | -10/Materials | Entered Mines 352 | -10/Mines | Discovered exit to Materials (range 8) 357 | -10/Mines | Discovered new exit (range 15) 404 | -10/Mines | Met a Derelict bent on vengeance 420 | -10/Mines | Assembled infested the area 484 | -10/Mines | Deemed a non-threat by the Exiles lab entrance 498 | -10/Mines | A weapon hastily lodged in a ceiling crevice suddenly fell to the ground 519 | -10/Mines | Destroyed by D-53 Grenadier with Mini Grenade Launcher Last Messages --------------- 00361_ Found Med. Matter Pod. 00361_ Found 24 Matter. 00376_ Machine disabled. 00379_ Y-45 Defender destroyed. 00386_ Acquired Hammer. 00388_ Acquired 24 matter. 00420_ ALERT: Infestation in the mines, dispatching Demolisher response squad. 00450_ K-01 Serf collects debris. 00460_ U-05 Engineer lays Concrete. 00469_ Acquired 24 matter. 00484_ "No threat detected, you may enter." 00498_ A Mak. Axe has been hastily shoved under some rubble with a note attached: "Chop chop!" 00498_ Dropped Hammer. 00499_ Acquired Mak. Axe. 00505_ K-01 Serf collects debris. 00506_ Acquired 86 matter. 00515_ Flight Unit destroyed. 00517_ Ion Engine destroyed. Map ----- +----------------------------------------------------+ | | | | | | | ??????????????????????????????????????????? | | ??????????????????????????????????????????? | | ??????????????????????????????????????????? | | ??????????????????????????????????????????? | | ??????????????????????????????????????????? | | ??????????????????????????????????????????? | | ??????????????????????????????????????????? | | ??????????????????????????????????????????? | | ?????????????????????????? ???????????????? | | ?????????????????????????? ? ???????????? | | ?????????????????????????? # ???????????? | | ?????????????????????????#?# ??#?????????? | | ????????????????????????? ? ??????????? | | ????????????????????????? % ? #??????????? | | ???????????????####?????? ???????????? | | ???????###????## #?????# # ????????????? | | ??????## ##### ##???? ?????????????? | | ??????# # #???? ??????????????? | | ??????# ###### #?????????????? | | ???????# # #?????????????? | | ???????# #?????????????? | | ???????## d #??????????????? | | ????????## @ d #?????????????? | | ?????????## ## #?????????????? | | ??????????####?## ##?????????????? | | ????????????????## ##????????????? | | ?????????????????## #####????????? | | ????????#####?????## #????????? | | ???????## ##??### #???????? | | ??????## #### #???????? | | ??????# ? #??????? | | ??????# #?????? | | ??????# #?????? | | ?????## ## ##?????# | | ????## ? ##?## ###??????# | | ????# #????###????????# | | ????# / #???????????????? | | ????## ### #???????????????? | | ?????## #?## #???????????????? | | ??????## ##?## #???????????????? | | ???????# #??## ##??????####???? | | ???????# ##???### ##????## ##??? | | ???????# ####??????# # #????# ##?? | | ???????# #?????????# # #???### #?? | | ???????# #??????#### ## ##### # #?? | | ???????# ##?????# ### ## ## #??? | | ???????# ##????# #?##### ] #??? | +----------------------------------------------------+ Best States ------------- Heat Dissipation 25 Energy Generation 10 Energy Capacity 250 Matter Stores 277 Matter Capacity 300 Sight Range 16 Robot Scan Range 14 Terrain Scan Density 10 Additional Mass Support 6 Evasion (%) 62 Item Schematics ----------------- None Robot Schematics ------------------ None Fabricated ------------ Nothing Alien Tech Used ----------------- None Achievements -------------- None Challenges ------------ None Game ------ Seed LauncherThrusterScythe Manual? 0 Play Time 00:19:06 Cumulative 33.7 hours Start 2022.05.15 @ 15:34:12 End 2022.05.15 @ 15:52:50 Sessions 1 Manual Loads 0 Difficulty Rogue Special Mode None Game No. 21 Rogue 19 Adventurer 0 Explorer 2 Win Type - Total 0 Types 0/0/0/0/0/0/0/0/0 Lore% 24 Gallery% 26 Achievement% 22 Wizard Run 0 Options --------- ASCII 0 Keyboard 0 Movement Numpad Keybinds 0 Fullscreen 1 Font 18/SmallcapsGlow Map View 76x50 Tactical HUD 1 Map Filters NONE Filters NONE Steam 1 RUN: 3c5e69cd-561b-4b9f-9310-245046ec4a66